bitfinex/quotes_ETHUSD_20250130
["timestamp","ask_amount","ask_price","bid_price","bid_amount"]
[1738204273062,3.17424,3150.4,3149.9,0.7778]
[1738204273263,3.17432,3150.3,3149.9,0.7778]
[1738204275090,3.17432,3150.3,3149.8,0.23593858]
[1738204275091,0.015,3150.2,3149.8,0.23593858]
[1738204275279,3.1747,3149.9,3149.8,0.23593858]
[1738204275676,3.1747,3149.9,3149.1,0.74380051]
[1738204275677,3.1904,3149.2,3149.1,0.74380051]
[1738204276190,0.7962,3149.7,3149.1,0.74380051]
[1738204276368,3.1754,3149.2,3149.1,0.74380051]
[1738204276754,3.1829,3149.2,3149.1,0.74380051]
[1738204276950,3.1829,3149.2,3149.1,0.2496]
[1738204277352,3.818719,3149.2,3149.1,0.2496]
[1738204277553,4.641219,3149.2,3149.1,0.2496]
[1738204279891,7.641219,3149.2,3149.1,0.2496]
[1738204283006,7.641219,3149.2,3147.9,0.7555]
[1738204283007,3.17647,3148.2,3147.9,0.7555]
[1738204283175,3.17653,3148.1,3147.9,0.7555]
[1738204284701,3.17681,3147.9,3147.6,0.7808]
[1738204284895,3.17682,3147.8,3147.6,0.7808]
[1738204285097,0.015,3148.3,3147.6,0.7808]
[1738204285296,3.17668,3148.0,3147.6,0.7808]
[1738204287477,0.015,3148.3,3147.6,0.7808]
[1738204287692,3.17648,3148.2,3147.6,3.95775]
[1738204288772,3.17654,3148.1,3147.6,0.7808]
[1738204290296,3.17642,3148.2,3147.6,3.95777]
[1738204290605,3.19139,3148.3,3147.6,3.95777]
[1738204290805,3.17644,3148.2,3147.6,4.671255]
[1738204291615,3.17644,3148.2,3147.6,1.494285]
[1738204291818,3.17679,3147.9,3147.6,0.7808]
[1738204292182,3.17682,3147.8,3147.6,0.7808]
[1738204292381,3.17692,3147.7,3147.4,0.7667]
[1738204292604,3.1771,3147.6,3147.4,0.7667]
[1738204292806,3.17712,3147.5,3147.4,0.7667]
[1738204293229,3.812364,3147.7,3147.4,0.7667]
[1738204293832,3.17705,3147.6,3147.4,0.7667]
[1738204294344,3.17712,3147.5,3147.0,3.94541]
[1738204294508,3.17712,3147.5,3147.0,0.7678]
[1738204294906,3.812364,3147.7,3147.0,3.94542]
[1738204295108,0.635374,3147.7,3147.1,3.17745]
[1738204295342,0.0075,3147.7,3147.1,3.17745]
[1738204295656,3.17639,3148.3,3147.6,0.7656]
[1738204295943,3.17651,3148.2,3147.6,0.7656]
[1738204296645,3.17677,3147.9,3147.6,0.7656]
[1738204296845,3.17703,3147.6,3147.2,0.8074]
[1738204298437,3.17712,3147.5,3147.2,0.8074]
[1738204298945,3.51140002,3147.6,3146.9,7.15663]
[1738204299119,3.51140002,3147.6,3146.9,3.97895]
[1738204299325,3.51140002,3147.6,3147.0,3.1776]
[1738204300268,3.17714,3147.5,3146.9,3.97895]
[1738204300759,3.51140002,3147.6,3147.0,3.17762]
[1738204301630,3.17703,3147.6,3147.0,3.17762]
[1738204302557,3.17703,3147.6,3146.9,0.8013]
[1738204302755,3.17718,3147.5,3146.9,3.97899]
[1738204303054,3.17725,3147.4,3146.9,3.97899]
[1738204303455,3.17688,3147.8,3146.9,0.8013]
[1738204303656,3.17646,3148.2,3147.4,0.7613]
[1738204303969,3.17646,3148.2,3147.7,0.8199]
[1738204304855,0.015,3148.3,3147.7,3.99675]
[1738204305363,3.17567,3149.0,3148.3,3.17631]
[1738204305561,3.17567,3149.0,3147.6,3.0]
[1738204305562,0.62877401,3148.9,3148.5,3.17609]
[1738204305731,0.62877401,3148.9,3148.6,3.95659]
[1738204305917,3.17522,3149.4,3148.9,3.17571]
[1738204306116,3.17522,3149.4,3148.8,3.17581]
[1738204306117,0.62743377,3149.1,3149.0,3.17561]
[1738204306468,0.635025,3149.4,3148.8,3.17581]
[1738204306787,3.17511,3149.5,3148.8,6.35154]
[1738204307050,3.17524,3149.4,3148.8,3.17573]
[1738204308055,0.62215694,3149.2,3148.8,3.17573]
[1738204308614,0.62215694,3149.2,3148.6,3.95657]
[1738204308820,3.79755694,3149.2,3148.6,3.95657]
[1738204309428,0.62215694,3149.2,3148.7,3.1759]
[1738204312889,3.18301,3149.1,3148.6,0.7806]
[1738204313098,3.1757,3149.0,3148.3,4.00151]
[1738204313255,3.19079,3148.9,3148.3,0.8252]
[1738204314166,0.62215694,3149.2,3148.4,0.55]
[1738204314358,0.62215694,3149.2,3148.8,3.1758]
[1738204315777,0.62215694,3149.2,3148.6,3.17594]
[1738204316004,1.00189863,3149.2,3148.6,3.17594]
[1738204316212,0.62215694,3149.2,3148.8,3.17578]
[1738204319020,0.62215694,3149.2,3148.5,0.825]
[1738204319229,0.0075,3149.1,3148.5,0.825]
[1738204319512,0.8059,3149.0,3148.4,3.17613]
[1738204320103,3.18306,3149.1,3148.4,3.17613]
[1738204320291,3.19041,3149.2,3148.6,3.17601]
[1738204320486,3.17514,3149.5,3148.7,0.825]
[1738204320693,3.17525,3149.4,3148.8,3.17577]
[1738204320889,3.17514,3149.5,3148.8,3.17577]
[1738204321091,3.19037,3149.3,3148.4,3.17617]
[1738204321279,3.17557,3149.1,3148.4,3.94587]
[1738204321480,3.18314,3149.0,3148.4,3.94587]
[1738204321681,3.96844,3149.0,3148.4,3.94587]
[1738204322194,3.96844,3149.0,3148.2,3.17637]
[1738204322427,3.17589,3148.8,3148.2,3.17637]
[1738204323086,7.14414,3149.0,3148.3,3.17627]
[1738204323292,3.1758,3148.9,3148.2,3.17637]
[1738204323602,3.17586,3148.8,3148.2,3.17637]
[1738204323801,3.18359,3148.6,3147.9,3.17664]
[1738204324002,3.98654,3148.5,3147.9,3.17664]
[1738204325919,3.18377,3148.4,3147.8,3.17682]
[1738204326285,0.0075,3148.4,3147.8,3.17682]
[1738204326486,0.8104,3148.5,3148.1,3.17642]
[1738204326783,3.18344,3148.7,3148.1,3.17642]
[1738204327222,3.99803,3148.8,3148.2,3.17641]
[1738204327379,4.79003877,3148.8,3148.2,3.17641]
[1738204327805,0.7463177,3149.0,3148.1,0.8049]
[1738204328010,0.8222,3149.4,3148.7,3.98078]
[1738204328205,0.8222,3149.4,3149.1,3.17544]
[1738204328391,3.17488,3149.8,3149.1,3.17544]
[1738204328392,0.8222,3149.8,3149.1,3.17544]
[1738204328596,3.17466,3150.0,3149.4,3.17511]
[1738204328882,0.8222,3150.1,3149.5,3.17508]
[1738204329102,0.399657,3150.1,3149.7,3.17482]
[1738204329302,0.399657,3150.1,3149.5,3.1751]
[1738204329502,0.399657,3150.1,3149.3,3.98017]
[1738204329503,3.1746,3150.0,3149.3,3.98017]
[1738204329732,3.1746,3150.0,3149.3,7.15539]
[1738204330036,3.1746,3150.0,3149.3,3.98012]
[1738204330380,3.17432,3150.3,3149.5,3.1751]
[1738204330589,0.8222,3150.4,3149.6,3.17496]
[1738204331530,3.18186,3150.3,3149.7,3.17481]
[1738204331842,3.18186,3150.3,3149.4,3.72518]
[1738204332018,3.17479,3149.9,3149.3,0.8049]
[1738204332224,3.17479,3149.9,3149.3,3.98013]
[1738204332592,3.17479,3149.9,3149.3,0.8049]
[1738204332797,0.798,3149.8,3149.2,3.17537]
[1738204333008,3.9728,3149.8,3149.0,3.93823]
[1738204333202,3.18241,3149.7,3149.1,3.1755]
[1738204333407,0.015,3149.7,3148.7,0.7627]
[1738204333701,3.17522,3149.4,3148.7,3.93854]
[1738204333939,0.0075,3149.5,3149.0,3.17559]
[1738204334290,0.0075,3149.5,3148.8,3.17572]
[1738204334505,3.18262,3149.5,3148.8,3.17572]
[1738204334735,0.0075,3149.5,3148.8,3.17572]
[1738204335048,3.1751,3149.5,3148.8,3.17572]
[1738204335404,0.015,3149.6,3148.8,3.17572]
[1738204335842,3.17523,3149.4,3148.8,3.17572]
[1738204336008,0.015,3149.6,3148.6,3.17598]
[1738204336009,0.413792,3149.6,3148.6,3.17598]
[1738204336334,0.413792,3149.6,3148.9,0.23602699]
[1738204336335,3.93262,3149.2,3148.9,0.23602699]
[1738204336524,3.17561,3149.0,3148.9,0.23602699]
[1738204336906,0.015,3149.1,3148.9,0.23602699]
[1738204337107,3.93262,3149.2,3148.9,0.23602699]
[1738204337308,3.0,3150.1,3148.9,0.23602699]
[1738204337309,0.7572,3149.5,3148.9,0.23602699]
[1738204337526,0.7572,3149.5,3149.0,3.17557]
[1738204337702,0.7572,3149.5,3148.9,0.65398069]
[1738204337892,3.93202,3149.8,3148.9,0.23602699]
[1738204338105,3.93202,3149.8,3149.1,3.17551]
[1738204338304,3.17494,3149.7,3149.1,3.17551]
[1738204340450,0.7572,3149.8,3149.2,3.1754]
[1738204340645,0.7572,3149.8,3149.1,3.17551]
[1738204340850,3.17491,3149.7,3149.1,3.17551]
[1738204341447,0.7572,3149.8,3149.2,3.1754]
[1738204342227,3.932,3149.8,3149.2,3.1754]
[1738204343353,3.17491,3149.7,3149.1,3.17551]
[1738204344017,1.467872,3149.8,3149.2,3.17539]
[1738204344215,7.12061,3150.1,3149.4,3.17516]
[1738204344413,0.7715,3150.1,3149.4,3.7252]
[1738204344658,0.7715,3150.1,3149.6,3.17497]
[1738204345554,0.7715,3150.1,3149.7,3.17484]
[1738204345766,3.17432,3150.3,3149.7,3.17487]
[1738204346071,3.99052,3150.3,3149.6,3.17497]
[1738204347677,0.8162,3150.3,3149.9,3.17469]
[1738204348369,0.8162,3150.3,3149.9,3.809648]
[1738204348528,0.8162,3150.3,3149.9,3.17469]
[1738204349569,3.97012,3150.7,3149.9,3.1747]
[1738204349765,3.97012,3150.7,3150.3,3.1742]
[1738204349766,0.7962,3150.7,3150.3,3.1742]
[1738204349990,3.18121,3150.9,3150.3,3.1742]
[1738204350474,3.18121,3150.9,3150.2,3.17439]
[1738204350774,3.18121,3150.9,3150.4,3.17419]
[1738204351323,3.18121,3150.9,3150.2,6.34872]
[1738204351527,3.18121,3150.9,3150.2,3.17433]
[1738204351731,3.18121,3150.9,3149.9,3.07711311]
[1738204351732,3.18121,3150.9,3150.3,3.17428]
[1738204352168,3.17393,3150.7,3150.1,3.17442]
[1738204352634,3.17393,3150.7,3150.1,3.17444]
[1738204353159,0.9595901,3151.0,3150.9,3.72369]
[1738204353160,0.1633901,3151.0,3150.9,3.72369]
[1738204353367,0.1633901,3151.0,3150.9,4.54649]
[1738204356486,0.1633901,3151.0,3150.9,3.99649]
[1738204356688,0.8156,3150.9,3150.6,3.17397]
[1738204356898,0.8156,3150.9,3150.5,3.17407]
[1738204357425,0.8156,3150.9,3150.6,3.17399]
[1738204358986,0.1633901,3151.0,3150.8,3.17379]
[1738204359187,0.1633901,3151.0,3150.9,4.47789]
[1738204362759,0.1633901,3151.0,3150.9,3.92789]
[1738204362907,0.1633901,3151.0,3150.9,3.17369]
[1738204363631,0.1633901,3151.0,3150.9,3.16923088]
[1738204363851,3.1717,3152.9,3151.8,0.55]
[1738204364147,3.96791,3152.9,3151.8,3.1727]
[1738204364347,3.17197,3152.7,3152.1,3.17248]
[1738204364558,0.404291,3152.8,3152.1,3.17248]
[1738204364849,3.17189,3152.7,3152.1,3.17248]
[1738204365052,3.17189,3152.7,3151.9,6.34529]
[1738204365240,3.17189,3152.7,3151.9,3.17261]
[1738204365442,3.17189,3152.7,3152.0,3.17251]
[1738204367954,3.17189,3152.7,3152.1,3.17246]
[1738204368288,0.7962,3152.9,3152.4,3.1721]
[1738204368484,0.7962,3152.9,3152.6,3.17195]
[1738204368644,0.7962,3152.9,3152.4,3.1721]
[1738204368982,0.7962,3152.9,3152.1,0.634507]
[1738204369182,0.7962,3152.9,3152.4,3.17215]
[1738204369854,3.96788,3152.9,3152.2,3.17238]
[1738204370057,3.96788,3152.9,3151.8,0.55]
[1738204370262,3.96788,3152.9,3152.2,3.17234]
[1738204370686,0.7962,3152.9,3152.2,3.17234]
[1738204370854,3.17186,3152.8,3152.2,3.806831]
[1738204371265,3.17186,3152.8,3152.1,3.17242]
[1738204372394,0.8012,3152.7,3151.8,3.17269]
[1738204372577,3.17205,3152.6,3151.9,0.7792]
[1738204372977,3.1723,3152.3,3151.6,3.17297]
[1738204373145,3.1723,3152.3,3151.7,0.317297]
[1738204373353,3.1721,3152.5,3151.8,3.17274]
[1738204374349,3.17202,3152.6,3151.7,3.490177]
[1738204374696,0.8012,3152.7,3151.7,3.490177]
[1738204374697,3.17239,3152.2,3151.7,3.490177]
[1738204375099,3.1722,3152.4,3151.7,3.490177]
[1738204375264,3.1722,3152.4,3151.8,0.3490177]
[1738204375595,3.17229,3152.3,3151.8,0.3490177]
[1738204377271,3.17229,3152.3,3151.7,3.490177]
[1738204377606,3.17245,3152.2,3151.5,3.17306]
[1738204378112,3.17259,3152.0,3151.4,0.7792]
[1738204378271,3.17286,3151.8,3151.1,3.98932]
[1738204378467,3.17286,3151.8,3151.2,0.716284]
[1738204379009,0.7726,3151.6,3150.8,3.98965]
[1738204379309,3.94567,3151.6,3151.1,3.17348]
[1738204379605,3.94567,3151.6,3151.0,3.17355]
[1738204381084,3.94567,3151.6,3151.0,3.1735]
[1738204381288,3.94567,3151.6,3151.1,3.17348]
[1738204382491,0.7726,3151.6,3151.1,3.17348]
[1738204382691,0.7726,3151.6,3151.1,3.17343]
[1738204383706,0.73055685,3151.6,3151.1,3.17343]
[1738204384221,3.17228,3152.3,3151.5,3.17306]
[1738204384420,3.17215,3152.5,3151.6,1.120506]
[1738204384577,3.17215,3152.5,3151.9,3.17268]
[1738204384924,3.17273,3151.9,3151.3,3.17328]
[1738204385785,0.015,3152.9,3150.9,3.17365]
[1738204385989,3.17297,3151.7,3151.0,3.17352]
[1738204386196,3.17297,3151.7,3151.0,3.808237]
[1738204386197,6.34594,3151.7,3151.0,3.808237]
[1738204386403,3.17297,3151.7,3151.0,3.808237]
[1738204386915,0.8258,3151.6,3151.0,3.808237]
[1738204388169,3.1732,3151.4,3150.8,3.17372]
[1738204388417,3.1732,3151.4,3150.7,3.97705]
[1738204388618,3.99887,3151.6,3151.0,3.17359]
[1738204389016,0.8258,3151.6,3151.1,3.17343]
[1738204389219,0.8258,3151.6,3151.3,3.17321]
[1738204389913,0.8258,3151.6,3151.1,3.490773]
[1738204390217,0.8258,3151.6,3151.0,0.47126598]
[1738204390428,0.0075,3151.5,3151.0,0.47126598]
[1738204390575,0.8258,3151.2,3151.0,0.47126598]
[1738204390778,3.17349,3151.1,3151.0,0.47126598]
[1738204390983,3.96949,3151.1,3151.0,0.47126598]
[1738204391180,5.001106,3151.1,3151.0,0.47126598]
[1738204393927,0.781,3151.1,3151.0,0.47126598]
[1738204394136,3.17293,3151.7,3151.0,0.47126598]
[1738204394282,3.17229,3152.3,3151.0,0.47126598]
[1738204394283,3.1727,3151.9,3151.3,3.17323]
[1738204394487,3.1727,3151.9,3151.3,3.490553]
[1738204394681,3.17285,3151.8,3151.3,0.317323]
[1738204394913,3.17297,3151.7,3151.0,3.17354]
[1738204395083,0.8193,3151.7,3150.0,3.89231311]
[1738204395283,0.8193,3150.9,3150.1,3.17448]
[1738204395980,0.8193,3150.9,3150.3,3.17423]
[1738204396185,0.8193,3150.9,3149.8,3.8152]
[1738204396186,0.8193,3150.9,3150.4,3.491583]
[1738204396411,0.8165,3151.5,3150.9,3.17368]
[1738204396599,3.98965,3151.5,3150.9,3.17368]
[1738204397518,3.17319,3151.4,3150.9,3.17368]
[1738204397716,3.17319,3151.4,3150.7,3.17388]
[1738204397896,3.17319,3151.4,3150.8,0.317388]
[1738204398112,3.17319,3151.4,3150.8,3.491118]
[1738204398430,0.8165,3151.5,3150.9,3.17367]
[1738204398819,3.98963,3151.5,3150.9,3.17367]
[1738204399198,3.17289,3151.7,3151.0,0.7773]
[1738204399548,3.96779,3151.8,3151.1,3.568517]
[1738204400585,3.96779,3151.8,3151.1,6.741907]
[1738204400813,3.17329,3151.3,3150.8,3.17369]
[1738204401012,3.17329,3151.3,3150.7,3.95118]
[1738204401335,3.17356,3151.1,3150.4,4.281003]
[1738204401627,3.17356,3151.1,3150.5,3.17407]
[1738204402435,3.17356,3151.1,3150.5,3.808902]
[1738204404472,3.17356,3151.1,3150.5,0.634832]
[1738204404622,3.1738,3150.8,3150.2,0.7894]
[1738204405474,3.1738,3150.8,3150.2,1.02536524]
[1738204406080,0.8309,3150.7,3150.2,0.23596524]
[1738204406501,0.8309,3150.7,3150.2,3.41034524]
[1738204406804,3.17386,3150.8,3150.2,3.41034524]
[1738204406805,3.17386,3150.8,3150.3,3.83276652]
[1738204406948,0.8022,3151.0,3150.3,3.83271652]
[1738204407153,0.8022,3151.0,3150.5,3.17403]
[1738204408585,3.17351,3151.1,3150.5,3.96083]
[1738204408897,3.17351,3151.1,3150.5,4.74018465]
[1738204409604,0.62470222,3151.8,3150.6,3.17399]
[1738204409898,0.015,3151.4,3150.5,1.56615465]
[1738204410098,3.1736,3151.0,3150.5,1.56615465]
[1738204410284,3.1736,3151.0,3150.5,4.74023465]
[1738204410468,3.1736,3151.0,3150.5,1.56615465]
[1738204410663,3.17329,3151.3,3150.5,1.56615465]
[1738204410664,3.17345,3151.2,3150.5,1.56615465]
[1738204411558,3.17345,3151.2,3150.6,3.17399]
[1738204412302,3.1735,3151.1,3150.6,3.40999062]
[1738204413798,3.1735,3151.1,3150.6,3.17399]
[1738204414160,3.17329,3151.3,3150.6,3.17399]
[1738204414494,3.17329,3151.3,3150.7,3.17387]
[1738204414658,6.34666,3151.3,3150.7,3.17387]
[1738204415089,3.17329,3151.3,3150.7,3.17387]
[1738204415296,3.17342,3151.2,3150.7,3.17387]
[1738204415590,3.17358,3151.1,3150.5,3.96087]
[1738204415795,3.17358,3151.1,3150.5,4.356957]
[1738204416295,3.17358,3151.1,3150.6,3.17399]
[1738204416999,3.17358,3151.1,3150.6,3.41029069]
[1738204417386,3.17339,3151.2,3150.6,3.41029069]
[1738204418602,3.17339,3151.2,3150.6,3.17399]
[1738204418898,3.17339,3151.2,3150.7,3.17387]
[1738204420276,3.17339,3151.2,3150.8,0.23615278]
[1738204420700,3.17351,3151.1,3150.8,0.23615278]
[1738204421565,3.17351,3151.1,3150.6,3.17398]
[1738204423080,3.17351,3151.1,3150.7,0.23617565]
[1738204424413,3.17331,3151.3,3150.6,3.17398]
[1738204424613,0.015,3151.4,3150.6,0.71348]
[1738204424842,3.17348,3151.2,3150.5,3.96082]
[1738204425007,3.17352,3151.1,3150.5,3.96082]
[1738204425543,3.17352,3151.1,3150.5,0.7868]
[1738204425741,3.1737,3150.9,3150.6,0.23621454]
[1738204426436,3.17389,3150.7,3150.6,0.23621454]
[1738204426641,6.34747,3150.9,3150.6,0.23621454]
[1738204427221,6.34747,3150.9,3150.3,0.23621454]
[1738204428557,6.34747,3150.9,3150.4,0.23621454]
[1738204429654,3.1738,3150.8,3150.4,0.23621454]
[1738204430447,3.1738,3150.8,3150.2,3.99222]
[1738204430654,3.1738,3150.8,3150.3,3.1743]
[1738204432397,3.1738,3150.8,3150.2,1.534564]
[1738204432398,3.17343,3151.2,3150.4,0.7708]
[1738204432560,3.17343,3151.2,3150.7,3.17389]
[1738204433995,3.17302,3151.6,3150.8,3.17373]
[1738204434196,3.98262,3151.6,3151.0,3.17356]
[1738204434405,7.15569,3151.6,3151.0,3.17356]
[1738204434994,3.17285,3151.8,3151.1,3.17343]
[1738204435202,3.17285,3151.8,3150.9,0.7553]
[1738204435405,3.17261,3152.0,3151.4,3.17316]
[1738204435559,3.17272,3151.9,3151.4,3.96296]
[1738204435759,3.17285,3151.8,3151.2,3.17338]
[1738204435995,0.8031,3151.8,3151.1,0.7926]
[1738204436207,3.17305,3151.6,3151.1,0.7926]
[1738204437197,3.17305,3151.6,3150.9,3.95408]
[1738204437198,3.17313,3151.5,3150.9,3.95408]
[1738204437402,3.17313,3151.5,3151.0,3.17359]
[1738204437870,3.17319,3151.4,3150.9,0.7804]
[1738204438097,3.17335,3151.3,3150.7,0.7804]
[1738204438308,3.93415,3151.3,3150.7,3.95427]
[1738204438700,3.17341,3151.2,3150.7,3.95427]
[1738204439399,3.17341,3151.2,3150.8,0.23630243]
[1738204440297,3.93415,3151.3,3150.8,0.23630243]
[1738204440501,4.644878,3151.3,3150.8,0.23630243]
[1738204440697,3.17354,3151.1,3150.8,0.23630243]
[1738204440931,3.17354,3151.1,3150.5,3.9544]
[1738204441297,3.17354,3151.1,3150.5,0.7804]
[1738204441493,3.17362,3151.0,3150.5,0.7804]
[1738204441724,3.17354,3151.1,3150.5,3.95449]
[1738204441906,3.17354,3151.1,3150.6,0.23639921]
[1738204442263,3.17368,3151.0,3150.6,0.23639921]
[1738204442706,3.17347,3151.2,3150.6,0.23639921]
[1738204443039,3.93414,3151.3,3150.6,0.23639921]
[1738204443240,3.17356,3151.1,3150.7,0.23639921]
[1738204443408,3.17371,3150.9,3150.7,0.23639921]
[1738204443617,6.34713,3151.1,3150.7,0.23639921]
[1738204443802,3.17364,3151.0,3150.7,0.23639921]
[1738204444439,3.17356,3151.1,3150.7,0.23639921]
[1738204444635,3.884329,3151.1,3150.7,0.23639921]
[1738204444841,3.17391,3150.7,3150.2,0.8324]
[1738204445999,3.174,3150.6,3150.2,0.8324]
[1738204446198,3.17391,3150.7,3150.3,0.23640782]
[1738204446645,3.96541,3150.7,3150.3,0.23640782]
[1738204446827,0.396541,3150.6,3150.3,0.23640782]
[1738204447136,3.1742,3150.4,3150.3,0.23640782]
[1738204447562,3.9643,3150.4,3150.3,0.23640782]
[1738204447768,0.7901,3150.4,3150.0,0.23640782]
[1738204448083,3.1745,3150.1,3150.0,0.23640782]
[1738204448227,3.17441,3150.2,3150.0,0.23640782]
[1738204448739,3.17431,3150.3,3150.0,0.23640782]
[1738204449244,3.17445,3150.2,3149.7,0.23640782]
[1738204450680,3.96436,3150.4,3149.7,3.17484]
[1738204450877,3.17394,3150.7,3150.1,0.8216]
[1738204451062,3.174,3150.6,3150.1,0.8216]
[1738204451375,0.0075,3150.8,3150.1,0.8216]
[1738204451537,3.18135,3150.8,3150.1,3.99608]
[1738204451737,3.17395,3150.7,3150.1,0.8216]
[1738204452937,3.17395,3150.7,3150.1,1.221214]
[1738204453434,3.17374,3150.9,3150.3,3.17427]
[1738204453830,3.17351,3151.1,3150.1,1.221214]
[1738204454030,2.52,3153.4,3150.7,0.7743]
[1738204454031,3.17332,3151.3,3150.7,0.7743]
[1738204455112,0.8308,3152.0,3151.3,0.7755]
[1738204455283,3.17271,3151.9,3151.4,3.17318]
[1738204455721,3.18015,3152.0,3151.4,3.17318]
[1738204455870,3.17269,3151.9,3151.4,3.17318]
[1738204456066,0.635272,3151.9,3151.0,3.92418]
[1738204456269,3.17308,3151.6,3151.0,0.7506]
[1738204456483,3.1732,3151.4,3151.0,0.7506]
[1738204457384,3.1731,3151.5,3151.0,0.7506]
[1738204457990,3.17321,3151.4,3151.0,0.7506]
[1738204459275,3.17308,3151.6,3151.0,0.7506]
[1738204459276,3.1731,3151.5,3151.0,0.7506]
[1738204460611,3.566988,3151.6,3151.0,3.92417]
[1738204461112,0.393908,3151.6,3151.0,0.7506]
[1738204461319,3.17297,3151.7,3151.1,3.17347]
[1738204461478,3.1728,3151.8,3151.3,3.17328]
[1738204461821,3.17271,3151.9,3151.3,3.17328]
[1738204463551,3.17271,3151.9,3151.4,0.7966]
[1738204463868,3.17267,3152.0,3151.4,0.7966]
[1738204464045,3.17235,3152.3,3151.5,3.569978]
[1738204464380,3.17235,3152.3,3151.7,3.17288]
[1738204464678,0.015,3152.7,3151.5,3.569978]
[1738204464679,3.17188,3152.7,3151.9,3.17261]
[1738204464979,3.17188,3152.7,3152.0,0.7966]
[1738204464980,3.17205,3152.6,3152.0,0.7966]
[1738204465155,3.17209,3152.5,3152.0,0.7966]
[1738204465358,3.17188,3152.7,3152.0,3.96916]
[1738204465560,3.17188,3152.7,3152.1,3.886567]
[1738204465939,3.17188,3152.7,3152.1,0.714177]
[1738204466161,3.17197,3152.7,3152.0,0.7966]
[1738204466486,3.17228,3152.4,3152.0,0.7966]
[1738204466863,3.1723,3152.3,3152.0,0.7966]
[1738204467473,3.17225,3152.4,3152.0,0.7966]
[1738204468554,3.17204,3152.6,3152.0,1.193538]
[1738204468753,3.17204,3152.6,3152.0,4.366058]
[1738204468953,3.17209,3152.5,3152.0,4.366058]
[1738204469586,3.17209,3152.5,3152.0,0.7966]
[1738204469993,3.17204,3152.6,3152.0,3.9691]
[1738204470202,3.17169,3152.9,3152.3,3.17227]
[1738204470350,3.17626,3153.4,3152.0,0.7966]
[1738204470351,3.969,3153.4,3152.7,0.8075]
[1738204470551,0.005,3153.4,3152.7,4.377246]
[1738204470756,3.17625,3153.4,3152.7,4.377246]
[1738204471156,0.005,3153.4,3152.7,1.205446]
[1738204471371,3.17178,3152.8,3152.7,0.8075]
[1738204471565,3.17211,3152.5,3152.3,0.8075]
[1738204472199,3.17236,3152.3,3151.8,0.8189]
[1738204472399,3.17244,3152.2,3151.8,0.8189]
[1738204472987,3.17267,3152.0,3151.8,0.8189]
[1738204473194,0.7914,3152.7,3151.8,0.8189]
[1738204473351,3.17204,3152.6,3151.8,0.8189]
[1738204473551,3.17208,3152.5,3152.1,0.7662]
[1738204474308,3.17219,3152.4,3152.1,0.7662]
[1738204475077,3.1723,3152.3,3152.1,0.7662]
[1738204475291,3.17238,3152.2,3151.8,0.7662]
[1738204475611,3.1723,3152.3,3151.8,0.7662]
[1738204476011,3.1723,3152.3,3151.8,4.332881]
[1738204476216,3.17209,3152.5,3151.9,3.1726]
[1738204476382,3.17209,3152.5,3152.0,3.17257]
[1738204477213,3.17185,3152.8,3152.0,3.17257]
[1738204477468,3.17198,3152.6,3152.0,3.17257]
[1738204477631,3.17128,3153.3,3152.6,3.17195]
[1738204477837,3.17128,3153.3,3152.5,3.172]
[1738204478122,3.17165,3153.0,3152.4,3.17209]
[1738204478494,3.17132,3153.3,3152.7,3.17183]
[1738204478696,0.005,3153.4,3152.9,0.7902]
[1738204478921,0.005,3153.4,3153.0,3.17154]
[1738204479403,0.005,3153.4,3152.9,0.7902]
[1738204480013,3.17624,3153.4,3152.9,0.7902]
[1738204482062,0.005,3153.4,3152.7,0.451203]
[1738204482349,3.17144,3153.2,3152.6,0.7599]
[1738204482740,3.17166,3153.0,3152.6,0.7599]
[1738204483454,3.17174,3152.9,3152.4,0.7799]
[1738204483848,0.005,3153.4,3152.7,0.55]
[1738204484158,0.005,3153.4,3153.3,0.7799]
[1738204484305,0.005,3153.4,3153.3,4.346301]
[1738204486302,0.005,3153.4,3153.3,1.175021]
[1738204487361,0.005,3153.4,3152.9,0.7517]
[1738204487706,0.005,3153.4,3153.0,3.17148]
[1738204487902,0.005,3153.4,3152.9,0.7517]
[1738204488511,0.005,3153.4,3153.0,3.17155]
[1738204488922,0.005,3153.4,3153.1,3.17147]
[1738204489123,0.005,3153.4,3153.1,3.880942]
[1738204490437,0.1633901,3154.1,3153.9,0.7905]
[1738204490766,0.1633901,3154.1,3153.9,3.9611]
[1738204490973,0.1633901,3154.1,3153.9,4.674297]
[1738204491333,0.1633901,3154.1,3153.9,1.503697]
[1738204491850,0.1633901,3154.1,3153.6,3.96141]
[1738204494761,0.1633901,3154.1,3153.8,3.1707]
[1738204495835,0.1633901,3154.1,3154.0,3.17057]
[1738204497043,0.1633901,3154.1,3154.0,4.49337]
[1738204498673,0.1633901,3154.1,3154.0,4.72772918]
[1738204498831,0.1633901,3154.1,3154.0,6.20651748]
[1738204506846,0.1633901,3154.1,3154.0,0.23435918]
[1738204507088,0.9363901,3154.1,3154.0,0.23435918]
[1738204508066,0.9363901,3154.1,3153.7,3.1708]
[1738204509089,0.1633901,3154.1,3153.8,3.1707]
[1738204509589,0.1633901,3154.1,3153.5,3.17104]
[1738204510102,0.1633901,3154.1,3153.6,3.17089]
[1738204510752,0.1633901,3154.1,3153.5,3.17104]
[1738204510966,3.3338801,3154.1,3153.6,3.17097]
[1738204511516,3.3338801,3154.1,3153.4,3.17111]
[1738204511791,3.3338801,3154.1,3153.4,3.86990311]
[1738204512165,3.3338801,3154.1,3153.4,3.17111]
[1738204512364,0.7625,3154.0,3153.4,3.17111]